Cogmind - Beta 15 @@@ ROGUE MODE // 2025.06.14 @ 00:48:08 Player: monkey Result: Destroyed by P-60 Hacker with Shock Rifle Performance ------------- Evolutions (4) 2000 Regions Visited (5) 1000 Robots Destroyed (21) 105 Value Destroyed (621) 621 Prototype IDs (0) 0 Alien Tech Used (0) 0 Bonus (-138) -138 TOTAL SCORE: 3588 Bonus ------- Friendly Fire -138 Cogmind --------- Core Integrity 0/850 Matter 300/300 Energy 100/100 System Corruption 2% Temperature Cool (0) Movement Treading (160) Location -6/Factory Parts ------- > --- POWER (4) -------- (None) > --- PROPULSION (3) --- Medium Treads > --- UTILITY (5) ------ (None) > --- WEAPON (3) ------- (None) > --- INVENTORY (5) ---- (None) Peak State ------------ > --- POWER ------------ Subdweller Power Source Light Fission Core > --- PROPULSION ------- Carbon-fiber Leg Improved Titanium Leg Myomer Leg > --- UTILITY ---------- Small Storage Unit Cloaking Device Utility Shielding Insulated Plating Drone Bay > --- WEAPON ----------- Shock Rifle Shock Rifle Arc Projector > --- INVENTORY -------- Improved Titanium Leg Armored Huge Wheel [Rating: 47] Favorites ----------- Power Subdweller Power Source Engine Subdweller Power Source Power Core Light Fission Core Propulsion Myomer Leg Treads Light Treads Leg Myomer Leg Wheel Compact Wheel Utility Small Storage Unit Device Cloaking Device Storage Small Storage Unit Protection Utility Shielding Weapon CPS Tube Energy Gun Shock Rifle Ballistic Gun Assault Rifle Ballistic Cannon Heavy Assault Cannon Launcher Grenade Launcher Special Weapon CPS Tube Build | -11 -10 -10 -9 -9 -6 ------- Run | Yrd Mat Sub Rec Scr Fac Slots Evolved 8 | . . . . . 8 Power 3 | . . . . . 3 Propulsion 1 | . . . . . 1 Utility 3 | . . . . . 3 Weapon 1 | . . . . . 1 Parts Attached 46 | 6 8 7 2 3 20 Power 7 | 1 2 1 1 . 2 Engine 6 | 1 2 1 1 . 1 Core 1 | . . . . . 1 Reactor . | . . . . . . Propulsion 11 | 2 3 2 . . 4 Treads 3 | 2 . . . . 1 Leg 5 | . 1 2 . . 2 Wheel 3 | . 2 . . . 1 Hover . | . . . . . . Flight . | . . . . . . Utility 13 | 1 2 2 1 1 6 Device 7 | . 1 . . . 6 Storage 2 | 1 1 . . . . Processor . | . . . . . . Hackware . | . . . . . . Protection 4 | . . 2 1 1 . Artifact . | . . . . . . Weapon 15 | 2 1 2 . 2 8 Energy Gun 6 | . . . . . 6 Energy Cannon . | . . . . . . Ballistic Gun 3 | 2 . 1 . . . Ballistic Cannon 1 | . . . . . 1 Launcher 1 | . . 1 . . . Special Weapon 4 | . 1 . . 2 1 Impact Weapon . | . . . . . . Slashing Weapon . | . . . . . . Piercing Weapon . | . . . . . . Special Melee Weapon . | . . . . . . Unidentified Prototypes . | . . . . . . Parts Lost 31 | . 3 3 . . 25 Power 4 | . 1 . . . 3 Propulsion 7 | . 1 1 . . 5 Utility 10 | . . 1 . . 9 Weapon 10 | . 1 1 . . 8 Highest Loss Streak 13 | . 2 2 . . 13 To Critical Strikes 1 | . . . . . 1 Average Backups 4 | 2 4 4 4 7 1 Power . | . . 1 . . . Propulsion . | 1 1 . . 1 . Utility 1 | . . 1 1 1 . Weapon 2 | . 2 1 2 3 . Tool/Special . | . . . . . . Unused Backups 9 | . . 1 1 7 . Power . | . . . . . . Propulsion . | . . . . . . Utility 2 | . . . 1 1 . Weapon 7 | . . 1 . 6 . Tool/Special . | . . . . . . Average Slot Usage (%) 84 | . 84 82 98 99 51 Engine 11 | . 11 14 14 14 3 Treads 2 | . 16 . . . . Leg 17 | . . 6 28 28 10 Wheel 3 | . 8 18 . . 1 Device 2 | . 4 1 . . 9 Storage 10 | . 14 1 12 14 4 Protection 9 | . . 12 13 14 6 Energy Gun 2 | . . . . . 10 Ballistic Gun 9 | . 26 16 14 2 . Launcher 4 | . . 5 14 2 . Special Weapon 7 | . 1 4 . 22 . Peak Build Rating 47 | 6 7 19 19 24 47 Average Rating 18 | 4 5 11 17 22 29 On Entrance 12 | . 6 7 19 18 24 Naked Turns . | . . . . . . Heaviest Build 38 | 14 15 30 30 18 38 Greatest Support 60 | 40 40 40 40 40 60 Greatest Overweight (x) 4 | . . 1 . . 4 Average Overweight (x) . | . . . . . . Largest Inventory Capacity 8 | 8 8 8 8 8 8 Average Capacity 7 | 7 8 5 7 8 7 Most Carried 8 | 5 7 8 6 8 8 Average Carried 4 | 2 4 4 4 7 1 Final Capacity 8 | 8 8 5 8 8 5 Final Carried 8 | 3 6 5 6 8 . Class Distribution -------------------- 80% | Mutant 9% | Tank 5% | Scavenger-Mutant 5% | Subdweller-Mutant Dominant Class ---------------- Mutant | -10/Materials Mutant | -10/Subcaves Mutant | -9/Recycling Mutant | -9/Scraptown Mutant | -6/Factory Resources | -11 -10 -10 -9 -9 -6 ----------- Run | Yrd Mat Sub Rec Scr Fac Matter Collected 901 | 157 256 234 91 30 133 Remotely . | . . . . . . Salvage Created 589 | . 246 200 . . 143 Parts 33 | . 13 9 . . 11 Haulers Intercepted . | . . . . . . Recyclers Shooed 2 | . 2 . . . . Parts Field Recycled . | . . . . . . Retrieved Matter . | . . . . . . Parts Self-Destructed 10 | . . 10 . . . Prevented . | . . . . . . Kills | -11 -10 -10 -9 -9 -6 ------- Run | Yrd Mat Sub Rec Scr Fac Combat Hostiles Destroyed 16 | . 5 8 . . 3 Melee 1 | . . . . . 1 Guns 8 | . 5 2 . . 1 Cannons 1 | . . . . . 1 AOE 6 | . . 6 . . . Classes Destroyed 9 | . 4 2 . . 3 Builder 2 | . 1 . . . 1 Recycler 1 | . 1 . . . . Turret 1 | . . 1 . . . Swarmer 4 | . 2 2 . . . Grunt 3 | . 3 . . . . Sentry 1 | . . . . . 1 Hunter 1 | . . . . . 1 Programmer 1 | . . . . . 1 Subdweller 6 | . . 6 . . . Thug 1 | . . 1 . . . Best Kill Streak 4 | . 3 4 . . 1 Combat Bots Only 4 | . 2 4 . . 1 Max Kills in Single Turn 3 | . 1 3 . . 1 Gunslinging . | . . . . . . Exploded 3 | . . 3 . . . Melee 1 | . . . . . 1 Uniques/NPCs Destroyed . | . . . . . . Combat | -11 -10 -10 -9 -9 -6 -------- Run | Yrd Mat Sub Rec Scr Fac Hostile Shots Fired 397 | . 78 65 . . 254 Missed 142 | . 33 21 . . 88 Hits 255 | . 45 44 . . 166 Projectile 255 | . 45 44 . . 166 Critical Strikes 9 | . 1 2 . . 6 Damage Taken 3975 | . 608 589 . . 2778 Core 993 | . 80 51 . . 862 Absorbed by Shields . | . . . . . . Redirected to Shielding 25 | . . . . . 25 Core Remaining (%) 73 | 100 . . . 47 . Volleys Fired 66 | . 32 14 . . 20 Largest 3 | . 2 2 . . 3 Hottest 155 | . 40 60 . . 155 Shots Fired 122 | . 64 23 . . 35 Gun 104 | . 64 15 . . 25 Cannon 6 | . . . . . 6 Launcher 8 | . . 8 . . . Special 4 | . . . . . 4 Kinetic 85 | . 64 15 . . 6 Thermal 2 | . . . . . 2 Explosive 8 | . . 8 . . . Electromagnetic 23 | . . . . . 23 Robot Hit Streak 12 | . 7 12 . . 6 Robot Miss Streak 9 | . 7 1 . . 9 Penetration Max . | . . . . . . Secondary Targets 1 | . 1 . . . . Max Gunslinging Chain 1 | . 1 . . . . Shots Hit Robots 67 | . 33 15 . . 19 Core Hits 44 | . 15 18 . . 11 Critical Kills . | . . . . . . Critical Parts Destroyed . | . . . . . . Critical Strikes . | . . . . . . Melee Attacks . | . . . . . . Impact . | . . . . . . Slashing . | . . . . . . Piercing . | . . . . . . Sneak Attacks . | . . . . . . Combat Hostiles . | . . . . . . Follow-up Attacks . | . . . . . . Damage Inflicted 1844 | . 518 984 3 . 339 Guns 897 | . 518 172 . . 207 Cannons 117 | . . . . . 117 Explosions 794 | . . 794 . . . Melee . | . . . . . . Ramming 36 | . . 18 3 . 15 Kinetic 807 | . 518 172 . . 117 Thermal 11 | . . . . . 11 Explosive 794 | . . 794 . . . Electromagnetic 196 | . . . . . 196 Impact . | . . . . . . Slashing . | . . . . . . Piercing . | . . . . . . Highest Corruption 2 | . . . . . 2 Average Corruption 1 | . . . . . 1 Corruption Purged . | . . . . . . Corruption Blocked . | . . . . . . Effects 2 | . . . . . 2 Matter Fused 1 | . . . . . 1 Heat Flow Errors 1 | . . . . . 1 Overload Shots . | . . . . . . Overflow Damage 10 | . . . . . 10 Projectiles 10 | . . . . . 10 Explosions . | . . . . . . Melee . | . . . . . . Knockbacks . | . . . . . . Impact . | . . . . . . Kinetic . | . . . . . . Secondary . | . . . . . . Self-Inflicted Damage 40 | . . 36 . . 4 Shots 2 | . . 2 . . . Rammed 9 | . . . . . 9 Targets Rammed 12 | . . 1 1 . 10 Kicked 2 | . . 1 1 . . Crushed 1 | . . . . . 1 Highest Temperature 285 | . 20 . . . 285 Average Temperature 115 | . 6 . . . 151 Received Heat Transfer 591 | . 237 144 . . 210 Siege Activations . | . . . . . . Martial Activations . | . . . . . . Shielding Activations . | . . . . . . Robots Disrupted . | . . . . . . Combat Hostiles . | . . . . . . Robots Corrupted . | . . . . . . Combat Hostiles . | . . . . . . Parts Fried . | . . . . . . Impact Corruptions . | . . . . . . Robots Melted . | . . . . . . Combat Hostiles . | . . . . . . Parts Melted . | . . . . . . Heat Transferred 25 | . . . . . 25 Parts Sabotaged . | . . . . . . Parts Stolen . | . . . . . . Parts Stripped . | . . . . . . Power Chain Reactions . | . . . . . . Alert | -11 -10 -10 -9 -9 -6 ------- Run | Yrd Mat Sub Rec Scr Fac Maximum Alert Level . | . . . . . . Low Security (%) 100 | 100 100 . 100 . 100 Level 1 . | . . . . . . Level 2 . | . . . . . . Level 3 . | . . . . . . Level 4 . | . . . . . . Level 5 . | . . . . . . High Security . | . . . . . . Max Security . | . . . . . . Peak Influence 50 | . 50 . 9 . 49 Initial 9 | . . . 9 . . Average 6 | . 10 . . . 9 Influence Increases 556 | . 130 120 13 . 293 Destroy 0b10 Robot/C 220 | . 100 60 . . 60 Destroy 0b10 Robot/NC 15 | . 10 . . . 5 Destroy Leader 50 | . 20 . . . 30 Successful Hack 13 | . . . 13 . . Destroy Structure 3 | . . . . . 3 Partial Spotted 15 | . . . . . 15 Lose Combat Pursuer 240 | . . 60 . . 180 Influence Decreases 496 | . 130 100 33 . 233 Entered New Map 11 | . . . 11 . . Time Decay 320 | . 100 90 22 . 108 Lost Part 165 | . 30 10 . . 125 Squads Dispatched 3 | . . . . . 3 Investigation . | . . . . . . Extermination 1 | . . . . . 1 Reinforcement 2 | . . . . . 2 Assault . | . . . . . . Garrison . | . . . . . . Intercept . | . . . . . . Searches Triggered . | . . . . . . Construction Impeded 1 | . . . . . 1 Haulers Reinforced . | . . . . . . Active Scanning Responses . | . . . . . . Cargo Convoy Interrupts . | . . . . . . Stealth | -11 -10 -10 -9 -9 -6 --------- Run | Yrd Mat Sub Rec Scr Fac Distress Signals 2 | . 2 . . . . Communications Jammed . | . . . . . . Distress Signals . | . . . . . . Times Spotted 50 | . 11 19 . . 20 Peak Tracking Total 9 | . 5 9 . . 8 Tactical Retreats 10 | . . 3 . . 7 Traps | -11 -10 -10 -9 -9 -6 ------- Run | Yrd Mat Sub Rec Scr Fac Traps Triggered 4 | . 3 . . . 1 Indirectly . | . . . . . . Trap Hack Attempts . | . . . . . . Triggered . | . . . . . . Disarmed . | . . . . . . Reprogrammed . | . . . . . . Reused . | . . . . . . Traps Extracted . | . . . . . . Installed . | . . . . . . Triggered . | . . . . . . Machines | -11 -10 -10 -9 -9 -6 ---------- Run | Yrd Mat Sub Rec Scr Fac Machines Disabled . | . . . . . . Max in Single Turn . | . . . . . . Machines Repaired . | . . . . . . Machines Dismantled . | . . . . . . Machines Sabotaged . | . . . . . . Overloaded Fab Kills . | . . . . . . Hacking | -11 -10 -10 -9 -9 -6 --------- Run | Yrd Mat Sub Rec Scr Fac Machines Accessed 8 | . 1 . 5 1 1 Terminals 5 | . 1 . 3 . 1 Fabricators . | . . . . . . Repair Stations . | . . . . . . Recycling Units 2 | . . . 2 . . Scanalyzers . | . . . . . . Garrison Access . | . . . . . . Total Hacks 22 | . 1 . 11 9 1 Successful 19 | . . . 10 9 . Failed 3 | . 1 . 1 . 1 Catastrophic . | . . . . . . Database Lockouts . | . . . . . . Manual 2 | . . . . 2 . Terminals 10 | . 1 . 8 . 1 Fabricators . | . . . . . . Repair Stations . | . . . . . . Recycling Units 3 | . . . 3 . . Scanalyzers . | . . . . . . Garrison Access . | . . . . . . Terminal Hacks 16 | . . . 7 9 . Record 12 | . . . 3 9 . Terminal Index 1 | . . . 1 . . Dispatch Records 1 | . . . 1 . . Maintenance Status 1 | . . . 1 . . Investigation Status 1 | . . . 1 . . Fabricator Hacks . | . . . . . . Repair Station Hacks . | . . . . . . Recycling Unit Hacks 3 | . . . 3 . . Recycle Component 1 | . . . 1 . . Process 1 | . . . 1 . . Report Inventory 1 | . . . 1 . . Scanalyzer . | . . . . . . Garrison Access Hacks . | . . . . . . Unauthorized Hacks . | . . . . . . Terminals . | . . . . . . Fabricators . | . . . . . . Repair Stations . | . . . . . . Recycling Units . | . . . . . . Scanalyzers . | . . . . . . Garrison Access . | . . . . . . Data Cores Recovered . | . . . . . . Used . | . . . . . . Hacking Detections 2 | . . . 1 . 1 Full Trace Events 1 | . . . 1 . . Feedback Events . | . . . . . . Feedback Blocked . | . . . . . . Robot Schematics Acquired . | . . . . . . Robots Built . | . . . . . . Authchips . | . . . . . . Time . | . . . . . . Total Robot Build Rating . | . . . . . . Part Schematics Acquired . | . . . . . . Parts Built . | . . . . . . Authchips . | . . . . . . Time . | . . . . . . Total Part Build Rating . | . . . . . . Parts Repaired . | . . . . . . Time . | . . . . . . Parts Recycled 1 | . . . 1 . . Recycled Matter . | . . . . . . Retrieved Matter . | . . . . . . Retrieved Components . | . . . . . . Parts Scanalyzed . | . . . . . . Part Schematics Acquired . | . . . . . . Parts Damaged . | . . . . . . Bothacking | -11 -10 -10 -9 -9 -6 ------------ Run | Yrd Mat Sub Rec Scr Fac Used RIF Installer . | . . . . . . Robots Hacked . | . . . . . . Non-combat . | . . . . . . Combat . | . . . . . . Robot Hacks Applied . | . . . . . . Relay Couplers Released . | . . . . . . Fabnet Peak Effective % . | . . . . . . Robots Rewired . | . . . . . . Allies Hacked . | . . . . . . Hacks Repelled . | . . . . . . Allies | -11 -10 -10 -9 -9 -6 -------- Run | Yrd Mat Sub Rec Scr Fac Total Allies . | . . . . . . Largest Group . | . . . . . . Highest-Rated Group . | . . . . . . Highest-Rated Ally . | . . . . . . Total Orders . | . . . . . . Ally Attacks . | . . . . . . Total Damage . | . . . . . . Kills . | . . . . . . Allies Corrupted . | . . . . . . Allies Melted . | . . . . . . Intel | -11 -10 -10 -9 -9 -6 ------- Run | Yrd Mat Sub Rec Scr Fac Active Infowar (turns) 517 | . 156 16 . . 345 IFF 3 | . . . . . 3 Terrain 27 | . . . . . 27 Structural 172 | . 156 16 . . . Cloaking 315 | . . . . . 315 Robot Analysis Total . | . . . . . . Derelict Logs Recovered . | . . . . . . Drone Launches 2 | . . . . . 2 Drone Recoveries . | . . . . . . Exploration | -11 -10 -10 -9 -9 -6 ------------- Run | Yrd Mat Sub Rec Scr Fac Turns Passed 3081 | 71 486 321 681 887 635 Spaces Moved 2156 | 50 274 218 547 721 346 Core 104 | 21 . . . . 83 Treads 181 | 29 145 . . . 7 Legs 1505 | . . 69 547 721 168 Wheels 366 | . 129 149 . . 88 Hover . | . . . . . . Flight . | . . . . . . Fastest Speed 50 | 50 100 100 120 120 50 Average Speed 121 | 113 131 113 120 120 122 Slowest Speed 250 | 160 160 190 120 120 250 Overloaded Moves . | . . . . . . Propulsion Burnouts . | . . . . . . Robots Hopped . | . . . . . . Potential Cave-ins . | . . . . . . Cave-ins Triggered . | . . . . . . Exploration Rate (%) 31 | 5 39 13 75 49 8 Regions Visited 5 Branch Regions 3 Pre-discovered Areas . | . . . . . . Known Exits Taken . | . . . . . . Unknown Exits Taken 5 | 1 1 1 1 1 . Scrap Searched 3 | . . . . 3 . Spaces Dug . | . . . . . . Terrain Destroyed 18 | . . 15 . . 3 Melee . | . . . . . . Projectile 3 | . . . . . 3 AOE 15 | . . 15 . . . Terrain Rammed . | . . . . . . Walls Destroyed . | . . . . . . Machines Disabled . | . . . . . . Actions | -11 -10 -10 -9 -9 -6 --------- Run | Yrd Mat Sub Rec Scr Fac Total 2507 | 64 333 271 572 748 519 Wait 147 | . 9 11 15 3 109 Move 2151 | 49 273 217 546 720 346 Hop . | . . . . . . Pick Up 59 | 9 8 12 5 12 13 Fast Attach . | . . . . . . Attach 42 | 6 6 5 2 2 21 Detach 1 | . 1 . . . . Swap 9 | . 4 3 1 1 . Drop 20 | . . 8 2 10 . Fire 66 | . 32 14 . . 20 Melee . | . . . . . . Ram 6 | . . . . . 6 Kick 2 | . . 1 1 . . Crush 4 | . . . . . 4 Escape Stasis . | . . . . . . Rewire . | . . . . . . Trap . | . . . . . . Miscellaneous . | . . . . . . Route ------- -11/Scrapyard -10/Materials -10/Subcaves -9/Recycling (discovered 2 exits: [*Fac] / *Scr) -9/Scraptown -6/Factory History --------- Turn | Location | Event 10 | -11/Scrapyard | Discovered new exit (range 15) 72 | -11/Scrapyard | Entered Materials 307 | -10/Materials | Build established: Mutant 541 | -10/Materials | Discovered new exit (range 5) 558 | -10/Materials | Entered Subcaves 559 | -10/Subcaves | Approached by a straggling Scientist 589 | -10/Subcaves | Shifting Twisted Machinery released Scrap Shield 650 | -10/Subcaves | Shifting Twisted Machinery released Sub. Machine Gun 707 | -10/Subcaves | Discovered new exit (range 16) 723 | -10/Subcaves | Ambushed by swarm of Subdwellers 726 | -10/Subcaves | Ambushed by Subdwellers from Twisted Machinery 726 | -10/Subcaves | Ambushed by Subdwellers from Twisted Machinery 757 | -10/Subcaves | Core integrity fell below 50% 768 | -10/Subcaves | Lost 5 allies 879 | -10/Subcaves | Entered Recycling 880 | -9/Recycling | Met a Zionite searching for Scraptown 1070 | -9/Recycling | Discovered new exit (range 10) 1529 | -9/Recycling | Scanned before Scraplab entrance 1547 | -9/Recycling | Entered Scraplab 1558 | -9/Recycling | Discovered new exit (range 2) 1560 | -9/Recycling | Entered Scraptown 2115 | -9/Scraptown | Visited Observation Area 2165 | -9/Scraptown | Visited Awakened 2252 | -9/Scraptown | Visited UFD Registry 2265 | -9/Scraptown | Heard Great Nut preacher, LISTEN AND RECITE! 2277 | -9/Scraptown | Visited TADAMA 2320 | -9/Scraptown | Visited Supply Room 2419 | -9/Scraptown | Discovered new exit (range 11) 2447 | -9/Scraptown | Entered Factory 2447 | -6/Factory | Evolved 8 slots: Power x3, Propulsion x1, Utility x3, Weapon x1 2831 | -6/Factory | Lost 13 parts (2p4n3u4w) 2977 | -6/Factory | Core integrity fell below 50% 3009 | -6/Factory | Lost 5 parts (1n2u2w) 3051 | -6/Factory | Core integrity fell below 20% 3082 | -6/Factory | Destroyed by P-60 Hacker with Shock Rifle Last Messages --------------- 03052_ K-01 Serf collects debris. 03053_ P-60 Hacker resets K-01 Serf, system corruption cleaned. 03054_ U-05 Engineer lays Concrete. 03054_ Lgt. Ion Engine destroyed. 03054_ K-01 Serf collects debris. 03055_ U-05 Engineer lays Concrete. 03055_ K-01 Serf collects debris. 03056_ U-05 Engineer lays Concrete. 03058_ K-01 Serf collects debris. 03061_ Slug penetrates Wall. 03063_ Acquired Med. Treads. 03072_ Slammed into P-60 Hacker. 03072_ Broken Weapon Cycler destroyed. 03073_ Slammed into P-60 Hacker. 03074_ Terrain Scanner destroyed. 03075_ Slammed into P-60 Hacker. 03076_ Crushed P-60 Hacker. 03076_ P-60 Hacker destroyed. 03077_ Acquired 9 matter. Map ----- +----------------------------------------------------+ | ?????????????????????????????????????????????????? | | ?????????????????????????????????????????????????? | | ?????????????????????????????????????????????????? | | ?????????????????????????????????????????????????? | | ?????????????????????????????????????????????????? | | ?????????????????????????????????????????????????? | | ?????????????????????????????????????????????????? | | ?????????????????????????????????????????????????? | | ?????????????????????????????????????????????????? | | ?????????????????????????????????????????????????? | | ?????????????????????????????????????????????????? | | ????????????????????????????????????????????????## | | ??????????????????????????????????????????????#### | | ??????????????????????????????????????????????# | | ?????????????????????????###??????????????????# | | ????????????????????????? +? ????????????????# | | ????????????????????????? #????? ??????????# | | ??????????????????????? +???? ???????### | | ????????????????????????? #??? ?#?#### | | ????????????????????????? #???? ### # | | ?????????????????????#####R#?????? # % | | ?????????????????????#! #???????? # | | ?????????????????????# #??????? / | | ?????????????????????# !#??#######+## | | ?????????????????????# #??# # | | ?????????????????????# @ #??# # | | ?????????????????????# #??# = !! # | | ??????????? ######p#### = # | | ?????????????# %! / # | | ??????????????????########|#### # | | ?????????????????????????# #??# # """ | | ?????????????????????????# #??# # """ | | ?????????????????????????# #??# # """ | | ????????????????????? ???# #########+### | | ?????????????????????????# """ | | ?????????????????????????# """ | | ??????????????????????" + """ | | ??????????????????????? # | | ?????????????????????????+ """ | | ?????????????????????????###########+### """ | | ???????????????????????????????????????# """ | | ???????????????????????????????????????# | | ????????????????????????????????"??????# """ ?? | | ????????????????????????????????????? ?# """ ?? | | ???????????????????????????????????????# ""???? | | ???????????????????????????????????????? ???? | | ????????????????????????????????????????## ""???? | | ?????????????????????????????????????????? "????? | | ?????????????????????????????????????????? ?????? | | ?????????????????????????????????????????????????? | +----------------------------------------------------+ Best States ------------- Heat Dissipation 37 Energy Generation 18 Energy Capacity 250 Matter Stores 300 Matter Capacity 350 Sight Range 16 Terrain Scan Range 14 Terrain Scan Density 10 Cloak Strength 2 Armor Coverage 800 Resistance: EM 15 Utility Shielding 33 Weapon Cycling 15 Evasion (%) 55 Recoil Reduction 2 Item Schematics ----------------- None Robot Schematics ------------------ None Fabricated ------------ Nothing Repaired ---------- Nothing Alien Tech Used ----------------- None Achievements -------------- Backstab Made in Tau Ceti IV Challenges ------------ None Game ------ Seed SlugStasisSabre Manual? 0 Play Time 01:11:17 Cumulative 7.9 hours Start 2025.06.13 @ 22:38:17 End 2025.06.14 @ 00:48:08 Sessions 1 Manual Loads 0 Difficulty Rogue Special Mode None Game No. 6 Rogue 6 Adventurer 0 Explorer 0 Win Type - Total 0 Types 0/0/0/0/0/0/0/0/0/0 Lore% 5 Gallery% 10 Achievement% 10 Wizard Run 0 Options --------- Layout 1 ASCII 0 Keyboard 0 Movement Numpad Keybinds 0 Fullscreen 1 Font 24/Smallcaps Map View 50x35 Zoom Use 0% Tactical HUD 1 Map Filters NONE Filters NONE Steam 1 RUN: 6f2eef26-8e61-4c10-9060-084e09a90697